Cogmind - Beta 17.1 @@@ ROGUE MODE // 2026.08.26 @ 20:33:31 Player: SunShine214 Result: Destroyed by G-34 Mercenary with Small Laser Performance ------------- Evolutions (0) 0 Regions Visited (1) 200 Robots Destroyed (14) 70 Value Destroyed (109) 109 Prototype IDs (0) 0 Alien Tech Used (0) 0 Bonus (0) 0 TOTAL SCORE: 379 Bonus ------- None Cogmind --------- Core Integrity 0/250 Matter 275/300 Energy 127/250 System Corruption 0% Temperature Warm (111) Movement Treading (160) Location -10/Materials Parts ------- > --- POWER (1) -------- Ion Engine > --- PROPULSION (2) --- Light Treads > --- UTILITY (2) ------ Small Storage Unit Seismic Detector > --- WEAPON (2) ------- Medium Laser > --- INVENTORY (8) ---- Mining Laser Peak State ------------ > --- POWER ------------ Light Ion Engine > --- PROPULSION ------- Light Treads Light Treads > --- UTILITY ---------- Small Storage Unit Seismic Detector > --- WEAPON ----------- EM Pulse Gun Small Laser > --- INVENTORY -------- (None) [Rating: 7] Favorites ----------- Power Light Ion Engine Engine Light Ion Engine Propulsion Light Treads Treads Light Treads Utility Small Storage Unit Device Seismic Detector Storage Small Storage Unit Weapon Small Laser Energy Gun Small Laser Build | -11 -10 ------- Run | Yrd Mat Slots Evolved . | . . Power . | . . Propulsion . | . . Utility . | . . Weapon . | . . Parts Attached 10 | 7 3 Power 2 | 1 1 Engine 2 | 1 1 Core . | . . Reactor . | . . Propulsion 3 | 2 1 Treads 3 | 2 1 Leg . | . . Wheel . | . . Hover . | . . Flight . | . . Utility 2 | 2 . Device 1 | 1 . Storage 1 | 1 . Processor . | . . Hackware . | . . Protection . | . . Artifact . | . . Weapon 3 | 2 1 Energy Gun 3 | 2 1 Energy Cannon . | . . Ballistic Gun . | . . Ballistic Cannon . | . . Launcher . | . . Special Weapon . | . . Impact Weapon . | . . Slashing Weapon . | . . Piercing Weapon . | . . Special Melee Weapon . | . . Unidentified Prototypes . | . . Parts Lost 5 | . 5 Power 1 | . 1 Propulsion 2 | . 2 Utility . | . . Weapon 2 | . 2 Highest Loss Streak 5 | . 5 To Critical Strikes . | . . Average Backups . | . . Power . | . . Propulsion . | . . Utility . | . . Weapon . | . . Tool/Special . | . . Unused Backups 1 | . 1 Power . | . . Propulsion . | . . Utility . | . . Weapon 1 | . 1 Tool/Special . | . . Average Slot Usage (%) 91 | . 91 Engine 13 | . 13 Treads 26 | . 26 Device 14 | . 14 Storage 14 | . 14 Energy Gun 22 | . 22 Peak Build Rating 7 | 7 7 Average Rating 6 | 6 6 On Entrance 3 | . 7 Avg Prop Armor Cover (%) . | . . Naked Turns . | . . Heaviest Build 13 | 12 13 Greatest Support 40 | 40 40 Greatest Overweight (x) 4 | . 4 Average Overweight (x) . | . . Largest Inventory Capacity 8 | 8 8 Average Capacity 7 | 7 8 Most Carried 1 | . 1 Average Carried . | . . Final Capacity 8 | 8 8 Final Carried 1 | . 1 Class Distribution -------------------- 100% | Mutant Dominant Class ---------------- Mutant | -10/Materials Resources | -11 -10 ----------- Run | Yrd Mat Matter Collected 270 | 270 . Remotely . | . . Salvage Created 345 | 257 88 Parts 29 | 25 4 Haulers Intercepted . | . . Recyclers Shooed 2 | 2 . Parts Field Recycled . | . . Retrieved Matter . | . . Parts Self-Destructed . | . . Prevented . | . . Parts Restored . | . . Kills | -11 -10 ------- Run | Yrd Mat Combat Hostiles Destroyed 2 | . 2 Guns 2 | . 2 Classes Destroyed 5 | 3 2 Worker 2 | 2 . Tunneler 7 | 7 . Recycler 1 | 1 . Watcher 2 | . 2 Swarmer 2 | . 2 Best Kill Streak 5 | 5 2 Combat Bots Only 1 | . 1 Max Kills in Single Turn 1 | 1 1 Gunslinging . | . . Exploded . | . . Melee . | . . Uniques/NPCs Destroyed . | . . Combat | -11 -10 -------- Run | Yrd Mat Hostile Shots Fired 123 | . 123 Missed 36 | . 36 Hits 87 | . 87 Projectile 87 | . 87 Critical Strikes 2 | . 2 Damage Taken 847 | . 847 Core 252 | . 252 Absorbed by Shields . | . . Core Remaining (%) 100 | 100 . Volleys Fired 39 | 23 16 Largest 2 | 2 2 Hottest 80 | 80 80 Shots Fired 66 | 46 20 Gun 66 | 46 20 Cannon . | . . Launcher . | . . Special . | . . Kinetic . | . . Thermal 38 | 23 15 Explosive . | . . Electromagnetic 28 | 23 5 Robot Hit Streak 5 | 5 4 Robot Miss Streak 3 | 3 3 Penetration Max . | . . Secondary Targets . | . . Shots Hit Robots 35 | 24 11 Core Hits 17 | 11 6 Critical Kills . | . . Critical Parts Destroyed . | . . Critical Strikes 1 | . 1 Burn 1 | . 1 Melee Attacks . | . . Impact . | . . Slashing . | . . Piercing . | . . Sneak Attacks . | . . Combat Hostiles . | . . Follow-up Attacks . | . . Damage Inflicted 532 | 320 212 Guns 439 | 277 162 Cannons . | . . Explosions 82 | 43 39 Melee . | . . Ramming 11 | . 11 Kinetic . | . . Thermal 335 | 190 145 Explosive . | . . Electromagnetic 186 | 130 56 Impact . | . . Slashing . | . . Piercing . | . . Highest Corruption . | . . Average Corruption . | . . Corruption Purged . | . . Corruption Blocked . | . . Overload Shots . | . . Overflow Damage . | . . Projectiles . | . . Explosions . | . . Melee . | . . Knockbacks . | . . Impact . | . . Kinetic . | . . Secondary . | . . Self-Inflicted Damage . | . . Shots . | . . Rammed 2 | . 2 Targets Rammed 2 | . 2 Kicked . | . . Crushed . | . . Highest Temperature 194 | 194 105 Average Temperature 66 | 82 24 Received Heat Transfer 159 | . 159 Siege Activations . | . . Martial Activations . | . . Shielding Activations . | . . Robots Disrupted . | . . Combat Hostiles . | . . Robots Corrupted . | . . Combat Hostiles . | . . Parts Fried . | . . Impact Corruptions . | . . Robots Melted . | . . Combat Hostiles . | . . Parts Melted 2 | . 2 Heat Transferred 772 | 375 397 Parts Sabotaged . | . . Parts Stolen . | . . Parts Stripped . | . . Power Chain Reactions 2 | 1 1 Alert | -11 -10 ------- Run | Yrd Mat Maximum Alert Level . | . . Low Security (%) 100 | 100 100 Level 1 . | . . Level 2 . | . . Level 3 . | . . Level 4 . | . . Level 5 . | . . High Security . | . . Max Security . | . . Peak Influence 30 | 15 30 Initial 6 | . 6 Average 4 | 2 5 Influence Increases 144 | 50 94 Destroy 0b10 Robot/C 40 | . 40 Destroy 0b10 Robot/NC 60 | 50 10 Destroy Leader 14 | . 14 Successful Hack 27 | . 27 Destroy Structure 3 | . 3 Influence Decreases 124 | 40 84 Entered New Map 4 | . 4 Time Decay 106 | 40 66 Lost Part 14 | . 14 Squads Dispatched 1 | . 1 Investigation . | . . Extermination . | . . Reinforcement 1 | . 1 Assault . | . . Garrison . | . . Intercept . | . . Searches Triggered . | . . Construction Impeded . | . . Haulers Reinforced . | . . Active Scanning Responses . | . . Cargo Convoy Interrupts . | . . Stealth | -11 -10 --------- Run | Yrd Mat Distress Signals 1 | . 1 Communications Jammed . | . . Distress Signals . | . . Times Spotted 10 | . 10 Peak Tracking Total 6 | . 6 Tactical Retreats . | . . Traps | -11 -10 ------- Run | Yrd Mat Traps Triggered 1 | . 1 Indirectly . | . . Trap Hack Attempts . | . . Triggered . | . . Disarmed . | . . Reprogrammed . | . . Reused . | . . Traps Extracted . | . . Installed . | . . Triggered . | . . Machines | -11 -10 ---------- Run | Yrd Mat Machines Disabled . | . . Max in Single Turn . | . . Machines Repaired . | . . Machines Dismantled . | . . Machines Sabotaged . | . . Overloaded Fab Kills . | . . Hacking | -11 -10 --------- Run | Yrd Mat Machines Accessed 4 | . 4 Terminals 4 | . 4 Fabricators . | . . Repair Stations . | . . Recycling Units . | . . Scanalyzers . | . . Garrison Access . | . . Total Hacks 7 | . 7 Successful 5 | . 5 Failed 2 | . 2 Catastrophic . | . . Database Lockouts . | . . Manual . | . . Terminals 7 | . 7 Fabricators . | . . Repair Stations . | . . Recycling Units . | . . Scanalyzers . | . . Garrison Access . | . . Terminal Hacks 5 | . 5 Level Access Points 1 | . 1 Locate Traps 1 | . 1 Surveillance Status 1 | . 1 Registered Components 1 | . 1 Zone Layout 1 | . 1 Fabricator Hacks . | . . Repair Station Hacks . | . . Recycling Unit Hacks . | . . Scanalyzer . | . . Garrison Access Hacks . | . . Unauthorized Hacks . | . . Terminals . | . . Fabricators . | . . Repair Stations . | . . Recycling Units . | . . Scanalyzers . | . . Garrison Access . | . . Data Cores Recovered . | . . Used . | . . Hacking Detections 3 | . 3 Full Trace Events . | . . Feedback Events . | . . Feedback Blocked . | . . Robot Schematics Acquired . | . . Robots Built . | . . Authchips . | . . Time . | . . Total Robot Build Rating . | . . Part Schematics Acquired . | . . Parts Built . | . . Authchips . | . . Time . | . . Total Part Build Rating . | . . Part Studies Acquired . | . . Parts Repaired . | . . Time . | . . Parts Recycled . | . . Recycled Matter . | . . Retrieved Matter . | . . Retrieved Components . | . . Parts Scanalyzed . | . . Part Schematics Acquired . | . . Parts Damaged . | . . Bothacking | -11 -10 ------------ Run | Yrd Mat Used RIF Installer . | . . Robots Hacked . | . . Non-combat . | . . Combat . | . . Robot Hacks Applied . | . . Relay Couplers Released . | . . Fabnet Peak Effective % . | . . Robots Rewired . | . . Allies Hacked . | . . Hacks Repelled . | . . Allies | -11 -10 -------- Run | Yrd Mat Total Allies . | . . Largest Group . | . . Highest-Rated Group . | . . Highest-Rated Ally . | . . Total Orders . | . . Ally Attacks . | . . Total Damage . | . . Kills . | . . Allies Corrupted . | . . Allies Melted . | . . Intel | -11 -10 ------- Run | Yrd Mat Active Infowar (turns) 413 | 147 266 Seismic 413 | 147 266 Robot Analysis Total . | . . Derelict Logs Recovered . | . . Drone Launches . | . . Drone Recoveries . | . . Exploration | -11 -10 ------------- Run | Yrd Mat Turns Passed 492 | 226 266 Spaces Moved 175 | 60 115 Core 7 | 2 5 Treads 168 | 58 110 Legs . | . . Wheels . | . . Hover . | . . Flight . | . . Fastest Speed 50 | 50 150 Average Speed 159 | 156 160 Slowest Speed 250 | 160 250 Overloaded Moves . | . . Propulsion Burnouts . | . . Robots Hopped . | . . Potential Cave-ins . | . . Cave-ins Triggered . | . . Exploration Rate (%) 17 | 3 32 Regions Visited 1 Branch Regions . Pre-discovered Areas . | . . Known Exits Taken . | . . Unknown Exits Taken 1 | 1 . Scrap Searched . | . . Spaces Dug . | . . Terrain Destroyed 7 | 4 3 Melee . | . . Projectile . | . . AOE 7 | 4 3 Terrain Rammed . | . . Walls Destroyed . | . . Machines Disabled . | . . Actions | -11 -10 --------- Run | Yrd Mat Total 318 | 143 175 Wait 92 | 54 38 Move 174 | 59 115 Hop . | . . Pick Up 1 | . 1 Fast Attach 10 | 7 3 Attach . | . . Detach . | . . Swap . | . . Drop . | . . Fire 39 | 23 16 Melee . | . . Ram . | . . Kick . | . . Crush 2 | . 2 Escape Stasis . | . . Rewire . | . . Trap . | . . Miscellaneous . | . . Route ------- -11/Scrapyard -10/Materials (discovered 4 exits: Mat x3 / [*Min]) History --------- Turn | Location | Event 4 | -11/Scrapyard | Discovered new exit (range 16) 227 | -11/Scrapyard | Entered Materials 237 | -10/Materials | Identified exit to Materials 304 | -10/Materials | Build established: Mutant 364 | -10/Materials | Discovered new exit (range 11) 470 | -10/Materials | Core integrity fell below 50% 490 | -10/Materials | Core integrity fell below 20% 493 | -10/Materials | Destroyed by G-34 Mercenary with Small Laser Last Messages --------------- 00444_ K-01 Serf cleans the Neutrino Reactor. 00445_ K-01 Serf collects debris. 00448_ K-01 Serf cleans the Terminal. 00448_ K-01 Serf collects debris. 00453_ Slammed into K-01 Serf. 00458_ Connecting with Terminal... >>Traps(Locate) Found 12 traps in 2 arrays: 6x Blade Trap 6x Alarm Trap Map updated. 00464_ Lgt. Treads destroyed. 00467_ Lgt. Ion Engine destroyed. 00474_ Acquired Med. Laser. 00474_ Lgt. Treads destroyed. 00481_ Acquired Ion Engine. 00485_ Acquired Lgt. Treads. 00487_ G-47 Trooper suffers critical hit (Burn). 00491_ Critical hit (Burn: +37). 00493_ S-10 Pest destroyed. Map ----- +----------------------------------------------------+ | ???????????????? ??????????^^? ???? | | ???????????????? ?????????^?? #??? | | ???????????????? ????????^???" #??? | | ??????????# ???? ##????# ??"" #??? | | ??????????# ???# +????#^^??"" #??? | | ???????? ?# ???# #????# ^?? #??? | | ???????? # #### #????# #??? | | ????????? # #????# ^"""" #??? | | ??????????+ +????#^^"""" #??? | | ??????????# #????# ^"""" #??? | | ??????????# #????# #??# | | ??????????# #????# #### | | ??????????# #????# # | | ?????????## #????# % | | ?????????# #????# | | ?????????+ #????# | | ?????????# #????# ##### | | ?????????### #????# #???# "! | | ???????????# ###### #???#""! | | ??????????## T% #???#### | | ??????##### # #??????? | | ????# # #?? | | ????# ##### ## **! ######### #?? | | ????????####+### *!! #???????????? | | ????????#! g%g # *! #???????????? | | ????????# s@ # #???????????? | | ????????# *= # #???????????? | | ????????# = # """ #???????????? | | ????????# # """ #???????????? | | ????????# = # """ #???????????? | | ????????######## ? #???????????? | | ???????????????# ? #???????????? | | ???????????????# ###?####???????????? | | ???????????????# ???????????????????? | | ???????????????# ???????????????????? | | ???????????????? ???????????????????? | | ????????????????????????????????????? | | ????????????????????????????????????? | | ????????????????????????????????????? | | ????????????????????????????????????? | | ????????????????????????????????????? | | ????????????????????????????????????? | | ????????????????????????????????????? | | ????????????????????????????????????? | | ????????????????????????????????????? | | ????????????????????????????????????? | | ??????????